bitfinex-derivatives/quotes_ETHF0:USTF0_20250919
["timestamp","ask_amount","ask_price","bid_price","bid_amount"]
[1758276073776,0.83884752,4524.7,4524.6,0.511]
[1758276075274,1.8331341,4524.7,4524.6,0.511]
[1758276075476,2.41156982,4524.7,4524.6,0.511]
[1758276075679,0.83884752,4524.7,4524.6,0.511]
[1758276075878,0.83884752,4524.7,4524.5,0.2051]
[1758276076170,0.83884752,4524.6,4524.5,0.2051]
[1758276077992,0.83884752,4524.6,4524.5,0.7161]
[1758276079983,0.57843572,4524.6,4524.5,0.7161]
[1758276080186,1.06865368,4524.6,4524.5,0.7161]
[1758276082184,1.08382593,4524.6,4524.5,0.7161]
[1758276085188,5.08382593,4524.6,4524.0,0.1896]
[1758276085383,2.8406322,4524.5,4524.0,0.1896]
[1758276085585,0.86082593,4524.4,4524.0,0.1896]
[1758276085784,1.58382593,4524.3,4524.0,0.1896]
[1758276086078,0.86082593,4524.2,4524.0,0.1896]
[1758276086283,0.86082593,4524.1,4524.0,0.1896]
[1758276086788,2.43687628,4524.1,4524.0,0.5207]
[1758276087176,2.43687628,4524.1,4524.0,0.8507]
[1758276087376,2.43687628,4524.1,4524.0,1.3617]
[1758276087780,2.43687628,4524.1,4524.0,1.0317]
[1758276088386,2.43687628,4524.1,4524.0,1.3617]
[1758276088785,0.86082593,4524.1,4524.0,1.3617]
[1758276089591,1.08382593,4524.1,4524.0,1.3617]
[1758276090289,36.90582593,4524.1,4524.0,1.3617]
[1758276090988,36.68282593,4524.1,4524.0,1.3617]
[1758276091189,36.90582593,4524.1,4524.0,1.3617]
[1758276091488,36.90582593,4524.1,4524.0,5.3617]
[1758276091696,36.89434528,4524.1,4524.0,5.3617]
[1758276093490,35.86894528,4524.1,4524.0,5.3617]
[1758276093790,1.1463,4525.6,4525.5,0.3241]
[1758276094096,1.1463,4525.1,4525.0,0.3241]
[1758276094288,1.3693,4525.1,4525.0,0.7884]
[1758276094884,0.323,4524.2,4524.1,1.112]
[1758276095192,1.0563,4524.2,4524.1,1.112]
[1758276095383,0.546,4524.2,4524.1,1.112]
[1758276096188,1.0563,4524.2,4524.1,1.112]
[1758276096490,1.3693,4524.2,4524.1,1.112]
[1758276097094,0.546,4524.2,4524.1,1.112]
[1758276097792,0.223,4524.2,4524.1,1.112]
[1758276101888,1.3693,4524.2,4524.1,1.112]
[1758276102399,0.223,4524.2,4524.1,1.112]
[1758276104593,0.5103,4524.2,4524.1,1.112]
[1758276104793,0.7333,4524.2,4524.1,1.112]
[1758276104992,1.3693,4524.2,4524.1,1.112]
[1758276105502,1.9495742,4524.2,4524.1,1.112]
[1758276105802,2.19876613,4524.2,4524.1,1.112]
[1758276106900,1.88576613,4524.2,4524.1,1.112]
[1758276109000,0.82946613,4524.2,4524.1,1.112]
[1758276109398,1.05246613,4524.2,4524.1,1.112]
[1758276109806,0.82946613,4524.2,4524.1,5.112]
[1758276110604,0.5802742,4524.2,4524.1,5.112]
[1758276111707,1.15243387,4524.2,4524.1,1.112]
[1758276112206,0.82943387,4524.2,4524.1,5.112]
[1758276112407,0.5802742,4524.2,4524.1,5.112]
[1758276113108,0.82941137,4524.2,4524.1,5.112]
[1758276113307,0.5802742,4524.2,4524.1,5.112]
[1758276113508,0.82939062,4524.2,4524.1,5.112]
[1758276113806,0.82938783,4524.2,4524.1,5.112]
[1758276115001,0.5802742,4524.2,4524.1,5.112]
[1758276115310,0.82931156,4524.2,4524.1,5.112]
[1758276115702,0.82933784,4524.2,4524.1,5.112]
[1758276115908,0.5802742,4524.2,4524.1,5.112]
[1758276116412,0.82937926,4524.2,4524.1,5.112]
[1758276116814,0.82937426,4524.2,4524.1,5.112]
[1758276119104,0.82947245,4524.2,4524.1,5.112]
[1758276119312,0.5802742,4524.2,4524.1,5.112]
[1758276119512,0.5802742,4524.2,4524.1,1.112]
[1758276119913,35.819,4525.1,4525.0,1.2879]
[1758276120112,36.86040709,4525.1,4525.0,1.2879]
[1758276120310,37.19790709,4525.1,4525.0,1.2879]
[1758276120515,37.68471441,4525.1,4525.0,1.2879]
[1758276120814,38.02181441,4525.1,4525.0,1.0986]
[1758276122716,37.44143945,4525.1,4525.0,1.0986]
[1758276122917,38.02197842,4525.1,4525.0,1.0986]
[1758276124912,36.85140826,4525.1,4525.0,1.2879]
[1758276125517,36.62246881,4525.1,4525.0,1.2879]
[1758276126016,37.11836881,4525.1,4525.0,1.2879]
[1758276126217,37.45586881,4525.1,4525.0,1.2879]
[1758276127012,36.62246881,4525.1,4525.0,1.2879]
[1758276128510,36.95996881,4525.1,4525.0,1.2879]
[1758276128711,37.45586881,4525.1,4525.0,1.2879]
[1758276129306,36.62246881,4525.1,4525.0,1.2879]
[1758276130917,36.95996881,4525.1,4525.0,1.2879]
[1758276131119,36.8754,4525.1,4525.0,1.2879]
[1758276131320,36.8754,4525.1,4525.0,1.0986]
[1758276131519,1.0564,4525.1,4525.0,1.0986]
[1758276133220,1.3935,4525.1,4525.0,1.0986]
[1758276133622,1.3935,4525.1,4524.6,0.4679]
[1758276133818,1.1705,4524.6,4524.5,0.7759]
[1758276134920,1.1705,4524.6,4524.1,0.4679]
[1758276135118,0.2001,4524.0,4523.9,0.1]
[1758276135322,1.3706,4524.0,4523.9,1.1986]
[1758276137713,1.3706,4524.0,4523.9,0.1]
[1758276137923,1.94724645,4524.0,4523.9,0.1]
[1758276142823,1.94724645,4524.0,4523.9,0.8759]
[1758276143022,2.17024645,4524.0,4523.9,0.8759]
[1758276143726,2.17024645,4524.0,4523.9,0.1]
[1758276147628,2.17024645,4524.0,4523.9,0.8759]
[1758276148323,2.17024645,4524.0,4523.9,0.408]
[1758276149731,2.17024645,4524.0,4523.9,0.1]
[1758276151730,2.17024645,4524.0,4523.9,0.9255]
[1758276152234,2.17024645,4524.0,4523.9,0.4338]
[1758276152430,1.94724645,4524.0,4523.9,0.4338]
[1758276152736,1.94724645,4524.0,4523.9,0.1]
[1758276152932,2.17024645,4524.0,4523.9,0.1]
[1758276154234,0.3349,4522.6,4522.5,0.5231]
[1758276154438,1.1145,4522.6,4522.5,0.6468]
[1758276154834,1.1145,4522.6,4522.5,1.1385]
[1758276156644,1.1145,4522.6,4522.2,0.4917]
[1758276156835,0.7977,4522.1,4522.0,1.3278]
[1758276162036,0.3349,4522.1,4522.0,1.3278]
[1758276164342,0.1885,4522.5,4522.1,0.4917]
[1758276164543,1.303,4522.5,4522.4,0.8255]
[1758276164841,1.303,4522.5,4522.4,1.1385]
[1758276165644,1.303,4522.5,4522.2,0.4917]
[1758276166338,1.303,4522.5,4521.8,0.4917]
[1758276166839,1.303,4522.5,4522.4,0.3338]
[1758276167241,1.1145,4522.5,4522.4,1.1385]
[1758276172650,1.303,4522.5,4522.4,0.8255]
[1758276172841,1.303,4522.5,4522.4,1.1385]
[1758276174948,1.1145,4522.5,4522.4,1.1385]
[1758276177450,1.1179,4522.9,4522.6,0.4943]
[1758276177650,1.1179,4522.9,4522.1,0.4943]
[1758276179159,1.1179,4522.9,4522.8,0.3237]
[1758276179460,1.69460168,4522.9,4522.8,1.1073]
[1758276179647,1.1179,4522.9,4522.8,0.3175]
[1758276179952,1.1179,4522.9,4522.8,0.7856]
[1758276181658,1.1179,4522.9,4522.8,0.3175]
[1758276182061,1.69479569,4522.9,4522.8,0.3175]
[1758276183162,1.69479569,4522.9,4522.6,0.4681]
[1758276183361,1.69479569,4522.9,4522.0,0.2003]
[1758276183362,0.2998,4522.2,4522.1,0.7856]
[1758276183558,1.0608,4522.2,4522.1,0.7856]
[1758276183759,1.0608,4522.2,4522.1,1.1073]
[1758276185163,1.0608,4522.2,4522.1,0.7856]
[1758276185363,1.0608,4522.2,4522.1,1.1073]
[1758276189269,0.4487,4522.9,4522.1,0.6392]
[1758276189469,1.63830193,4522.8,4522.7,0.3175]
[1758276189773,1.63830193,4522.8,4522.7,0.7856]
[1758276190275,1.63830193,4522.8,4522.7,0.3175]
[1758276190475,1.63830193,4522.8,4522.1,0.4681]
[1758276190770,0.761,4522.2,4522.1,1.1073]
[1758276192673,1.0608,4522.2,4522.1,1.1073]
[1758276195665,0.761,4522.2,4522.1,1.1073]
[1758276197079,0.4487,4522.9,4522.2,0.4681]
[1758276197279,0.761,4522.3,4522.2,1.1073]
[1758276198480,1.0608,4522.3,4522.2,1.1073]
[1758276198979,1.0608,4522.3,4521.6,0.39789]
[1758276199274,0.7485,4522.2,4522.1,0.3175]
[1758276199480,1.0608,4522.2,4522.1,0.7856]
[1758276199675,0.1866,4523.0,4522.2,0.4681]
[1758276199676,0.4487,4522.9,4522.2,0.4681]
[1758276199873,1.0608,4523.4,4523.3,0.3175]
[1758276200082,1.85891576,4523.4,4523.3,1.1073]
[1758276200380,1.63825742,4523.4,4523.3,1.1073]
[1758276201277,1.0608,4523.4,4523.3,1.1073]
[1758276203178,0.4487,4523.9,4523.3,0.6392]
[1758276203372,1.62749263,4523.8,4523.7,0.6392]
[1758276203580,1.62749263,4523.8,4523.7,1.1073]
[1758276203781,1.62749263,4523.8,4523.7,0.3175]
[1758276205176,1.62749263,4523.8,4523.7,0.7856]
[1758276206183,1.0608,4523.8,4523.7,0.7856]
[1758276206674,1.0608,4523.8,4523.7,1.1073]
[1758276208883,1.0608,4523.8,4523.1,0.4419]
[1758276210882,1.2838,4523.8,4523.1,0.4419]
[1758276212279,1.2838,4523.8,4523.7,0.3079]
[1758276212480,1.0608,4523.8,4523.7,0.3079]
[1758276212682,1.2838,4523.8,4523.7,0.3079]
[1758276213178,1.2838,4523.8,4523.7,0.7498]
[1758276213374,1.0608,4523.8,4523.7,0.7498]
[1758276214586,1.0608,4523.8,4523.7,1.0724]
[1758276215880,1.2838,4523.8,4523.7,1.0724]
[1758276216082,1.0608,4523.8,4523.7,1.0724]
[1758276216288,1.2838,4523.8,4523.7,1.0724]
[1758276218088,1.0608,4523.8,4523.7,1.0724]
[1758276218288,1.2838,4523.8,4523.7,1.0724]
[1758276219684,1.0608,4523.8,4523.7,1.0724]
[1758276222082,0.1888,4524.5,4523.7,1.0724]
[1758276222285,0.8499,4524.2,4524.1,0.6305]
[1758276222488,1.3242,4524.2,4524.1,1.0724]
[1758276222691,1.1012,4524.2,4524.1,1.0724]
[1758276222989,1.3242,4524.2,4524.1,1.0724]
[1758276225489,1.1012,4524.2,4524.1,1.0724]
[1758276225687,1.3242,4524.2,4524.1,1.0724]
[1758276229796,0.6973,4524.2,4524.1,1.0724]
[1758276230193,1.0174,4524.2,4524.1,1.0724]
[1758276230394,1.3242,4524.2,4524.1,1.0724]
[1758276230593,0.6973,4524.2,4524.1,1.0724]
[1758276230794,0.7944,4524.2,4524.1,1.0724]
[1758276230992,0.4743,4524.4,4524.2,0.4419]
[1758276231197,0.4743,4524.4,4524.3,1.0724]
[1758276233004,0.1888,4525.0,4524.9,0.7498]
[1758276233005,1.29,4525.0,4524.9,0.7498]
[1758276233203,1.372,4525.0,4524.9,0.7498]
[1758276234305,1.372,4525.0,4524.9,0.3079]
[1758276235707,1.372,4525.0,4524.9,0.7498]
[1758276236711,1.372,4525.0,4524.9,1.0625]
[1758276237005,1.1832,4525.0,4524.9,1.0625]
[1758276238105,1.1012,4525.0,4524.9,1.0625]
[1758276239911,0.3201,4525.0,4524.9,1.0625]
[1758276240110,1.2864,4525.4,4525.3,1.0587]
[1758276240813,0.7546,4525.4,4525.3,1.0587]
[1758276241013,0.4546,4525.8,4525.3,0.5917]
[1758276241313,0.7546,4525.8,4525.7,1.0587]
[1758276242206,0.223,4525.9,4525.8,0.467]
[1758276242607,0.223,4525.9,4525.8,1.0587]
[1758276242809,1.0634,4526.4,4526.3,0.2977]
[1758276243012,1.0634,4526.4,4526.3,0.7647]
[1758276244006,1.0634,4526.4,4526.3,0.2977]
[1758276246207,1.0634,4526.4,4525.6,0.467]
[1758276250711,0.6088,4526.4,4526.3,0.2977]
[1758276251309,1.0634,4526.4,4526.3,0.2977]
[1758276252511,1.0634,4526.4,4526.1,0.467]
[1758276252713,1.0634,4525.2,4524.6,0.467]
[1758276254413,0.7546,4523.7,4523.6,1.0587]
[1758276254611,0.4546,4524.4,4523.7,0.467]
[1758276254916,1.0634,4524.4,4524.3,0.7647]
[1758276255121,1.0634,4524.4,4524.3,1.0587]
[1758276259317,1.0634,4524.4,4524.3,0.7647]
[1758276259618,1.0634,4524.4,4524.3,0.2977]
[1758276261322,1.0634,4524.4,4524.3,0.7647]
[1758276262522,1.0634,4524.4,4524.3,1.0587]
[1758276263024,0.1882,4525.0,4524.3,0.5917]
[1758276263217,0.7546,4524.9,4524.8,0.2977]
[1758276263523,1.0634,4524.9,4524.5,0.467]
[1758276266030,1.0634,4524.9,4524.0,0.1779]
[1758276266228,1.0634,4524.9,4524.1,0.467]
[1758276269529,0.1882,4525.0,4523.6,1.0205]
[1758276269530,0.7526,4523.7,4523.6,1.0205]
[1758276269728,1.0569,4523.7,4523.6,1.0205]
[1758276271740,0.4458,4524.2,4523.7,0.4347]
[1758276272040,0.7501,4524.2,4524.1,1.0205]
[1758276272243,1.0569,4524.2,4524.1,1.0205]
[1758276278940,5.27794,4524.2,4522.9,0.6077]
[1758276279138,0.6111,4522.6,4521.9,0.223]
[1758276279340,0.1703,4523.0,4522.4,1.0205]
[1758276279341,1.2272,4522.5,4522.4,1.0205]
[1758276280438,0.4458,4522.4,4521.7,0.223]
[1758276280639,0.7501,4521.8,4521.7,1.2435]
[1758276280838,1.0569,4521.8,4521.7,1.2435]
[1758276281034,1.0569,4521.8,4521.7,1.0205]
[1758276285341,0.4458,4521.7,4521.0,36.2447]
[1758276285541,0.7501,4521.1,4521.0,1.0205]
[1758276286947,0.7501,4521.1,4521.0,1.1923]
[1758276287145,0.1703,4521.5,4521.0,1.1923]
[1758276287146,0.7501,4521.4,4521.3,0.5858]
[1758276287343,0.7501,4521.4,4521.3,1.0205]
[1758276288148,1.0569,4521.4,4521.3,1.0205]
[1758276288738,1.0569,4521.4,4520.5,0.1718]
[1758276288739,0.6111,4521.4,4520.5,0.4347]
[1758276289054,0.6111,4520.1,4520.0,0.5858]
[1758276289345,0.6111,4520.1,4520.0,1.0205]
[1758276289555,1.0569,4520.1,4520.0,1.0205]
[1758276290539,0.3043,4520.2,4520.1,0.4347]
[1758276290745,0.7501,4520.2,4520.1,1.0205]
[1758276292342,0.4458,4520.9,4520.1,0.5858]
[1758276292643,0.3043,4520.3,4520.2,1.0205]
[1758276292838,0.7501,4520.3,4520.2,1.0205]
[1758276294052,0.4458,4520.9,4520.3,0.4347]
[1758276294243,0.7501,4520.9,4520.8,0.5858]
[1758276294450,0.7501,4520.9,4520.8,1.0205]
[1758276294744,1.0569,4520.9,4520.1,0.4347]
[1758276295249,1.0569,4520.8,4520.7,0.7313]
[1758276296249,1.0569,4520.8,4520.7,1.0205]
[1758276296449,0.7501,4520.8,4520.7,1.0205]
[1758276296851,0.1703,4521.5,4520.8,0.4251]
[1758276297048,1.0481,4521.4,4521.3,0.2951]
[1758276297547,1.0481,4521.4,4521.1,0.4251]
[1758276298053,1.0481,4521.4,4521.3,0.7202]
[1758276298253,1.0481,4521.4,4520.5,0.57088]
[1758276298553,1.0481,4521.4,4521.3,0.7173]
[1758276298946,1.0481,4521.4,4521.3,0.3006]
[1758276299347,1.0481,4521.4,4521.3,0.7173]
[1758276299947,1.0481,4521.4,4521.3,1.0128]
[1758276300650,1.0481,4521.4,4521.3,0.3006]
[1758276301049,1.0481,4521.4,4521.3,0.5961]
[1758276301248,0.7498,4521.4,4521.3,1.0128]
[1758276301453,0.2887,4521.4,4521.3,1.0128]
[1758276301953,0.7052,4521.4,4521.3,1.0128]
[1758276302150,0.4165,4521.9,4521.4,0.4167]
[1758276302349,0.4165,4521.9,4521.8,1.0128]
[1758276302350,1.0084,4521.9,4521.8,1.0128]
[1758276302752,0.2933,4521.9,4521.8,1.0128]
[1758276303954,0.7098,4521.9,4521.8,1.0128]
[1758276305751,0.2933,4521.9,4521.8,1.0128]
[1758276306154,1.0084,4521.9,4521.8,1.0128]
[1758276306652,0.7098,4521.9,4521.8,1.0128]
[1758276306852,0.2933,4521.9,4521.8,1.0128]
[1758276307159,0.4165,4522.2,4521.8,1.0128]
[1758276307457,1.0084,4522.4,4522.3,0.7173]
[1758276307655,1.0084,4522.4,4522.3,1.0128]
[1758276308156,1.0084,4522.9,4522.8,0.5961]
[1758276308457,1.0084,4522.9,4522.8,1.0128]
[1758276309847,1.0084,4522.9,4522.8,0.3006]
[1758276310360,1.0084,4522.9,4522.8,1.0128]
[1758276311554,1.0084,4522.9,4522.8,0.3006]
[1758276313353,1.0084,4522.9,4522.8,1.0128]
[1758276313556,0.4165,4523.2,4522.8,1.0128]
[1758276313756,1.0084,4523.0,4522.9,1.0128]
[1758276313965,0.7695,4523.0,4522.6,0.4167]
[1758276314157,1.0084,4522.5,4522.4,1.0128]
[1758276315859,0.2933,4522.5,4522.4,1.0128]
[1758276316253,0.7098,4522.5,4522.4,1.0128]
[1758276316650,0.1776,4523.0,4522.4,1.0128]
[1758276316963,0.7098,4522.5,4522.4,0.5961]
[1758276317460,0.7098,4522.5,4522.4,1.0128]
[1758276317760,1.0084,4522.5,4522.4,1.0128]
[1758276317957,0.2933,4522.5,4522.4,1.0128]
[1758276318662,0.7098,4522.5,4522.4,1.0128]
[1758276319160,1.186,4522.5,4522.4,1.0128]
[1758276319362,1.186,4520.5,4520.4,2.76320998]
[1758276319562,1.186,4520.5,4518.9,0.43662032]
[1758276319864,1.186,4520.5,4519.0,0.22125]
[1758276320066,1.186,4520.5,4518.4,1.738861]
[1758276320067,0.1776,4520.5,4518.4,1.738861]
[1758276320258,0.1776,4519.0,4518.5,0.039]
[1758276320453,1.186,4519.0,4518.9,0.1908]
[1758276320760,0.5941,4519.0,4518.9,0.3816]
[1758276320960,0.8874,4519.0,4518.9,0.3816]
[1758276321755,0.5941,4519.5,4518.9,4.5008]
[1758276321960,0.5941,4519.5,4518.9,0.5008]
[1758276322157,0.5941,4519.5,4518.9,0.89891]
[1758276323563,0.5941,4519.5,4518.9,0.5008]
[1758276324465,0.4709,4519.0,4518.9,0.1908]
[1758276324664,1.186,4519.0,4518.9,0.4158]
[1758276325160,1.186,4519.0,4518.9,0.6066]
[1758276326470,0.5941,4519.0,4518.9,0.6066]
[1758276326666,0.5941,4519.0,4518.9,0.7258]
[1758276327664,0.4165,4519.0,4518.9,0.7258]
[1758276328868,0.583,4519.0,4518.9,0.7258]
[1758276329464,0.583,4519.0,4518.9,0.6066]
[1758276329665,0.8641,4519.0,4518.9,0.6066]
[1758276330769,0.583,4519.0,4518.9,0.7165]
[1758276331365,0.4165,4519.0,4518.9,0.7165]
[1758276331569,0.4587,4519.5,4519.4,0.3516]
[1758276331771,0.8716,4519.5,4519.4,0.3516]
[1758276331967,1.1541,4519.5,4519.4,0.3516]
[1758276332369,1.1541,4519.5,4519.4,0.1758]
[1758276333273,1.1541,4519.5,4519.4,0.3516]
[1758276333775,0.8716,4519.5,4519.4,0.3516]
[1758276335478,0.8716,4519.5,4519.4,0.74968]
[1758276335678,0.5905,4519.5,4519.4,1.08458]
[1758276336070,0.4587,4520.0,4519.9,0.3516]
[1758276336676,1.1541,4520.0,4519.9,0.3516]
[1758276337072,1.1541,4520.0,4519.9,0.1758]
[1758276337272,0.5636,4519.8,4519.7,1.07785]
[1758276337476,0.9765,4519.8,4519.7,1.07785]
[1758276337677,0.9765,4519.8,4519.7,1.30285]
[1758276337877,0.9765,4519.8,4519.7,1.47865]
[1758276339078,0.9765,4519.8,4519.7,1.0806]
[1758276339682,0.9765,4519.8,4519.7,1.47865]
[1758276340374,0.5905,4520.0,4519.9,0.39803]
[1758276340576,0.4129,4520.0,4519.9,0.85953]
[1758276340885,0.694,4520.7,4520.6,0.96587]
[1758276341379,0.9765,4520.7,4520.6,0.96587]
[1758276342181,0.9765,4520.7,4520.6,0.5679]
[1758276344083,0.9765,4520.7,4520.6,0.96587]
[1758276344678,0.694,4520.7,4520.6,0.8554]
[1758276344879,0.9765,4520.7,4520.6,0.5679]
[1758276346182,0.9765,4520.7,4520.6,1.0719]
[1758276347783,0.9765,4520.7,4520.6,1.2959]
[1758276350284,0.4129,4520.7,4520.6,1.0794]
[1758276351084,0.694,4520.7,4520.6,1.0794]
[1758276351288,0.4129,4520.7,4520.6,1.0794]
[1758276351481,0.1665,4521.0,4520.9,0.39795]
[1758276351688,0.7301,4521.5,4521.4,0.2827]
[1758276352182,1.143,4521.5,4521.4,0.2827]
[1758276352584,1.143,4521.5,4521.4,0.6806]
[1758276353184,1.143,4521.5,4521.4,0.2827]
[1758276353387,1.143,4521.5,4521.3,0.152]
[1758276353784,0.7301,4521.5,4521.3,0.54991]
[1758276353984,0.9765,4521.4,4521.3,0.54991]
[1758276355782,0.9765,4521.4,4521.3,1.11781]
[1758276356187,0.9765,4521.4,4521.3,0.83261]
[1758276357090,0.9765,4521.4,4521.3,1.11111]
[1758276357586,0.9765,4521.4,4521.3,0.39791]
[1758276359991,0.9765,4521.4,4521.3,0.97661]
[1758276360294,0.694,4521.4,4521.3,1.25041]
[1758276361786,0.1665,4522.0,4521.5,0.99474]
[1758276361983,0.5748,4522.0,4521.9,1.42366]
[1758276362288,0.5748,4522.0,4521.9,1.64766]
[1758276363796,0.995,4522.0,4521.9,1.64766]
[1758276366004,1.1615,4522.5,4522.4,1.42361]
[1758276366194,1.1615,4522.5,4522.4,1.64761]
[1758276366396,0.995,4522.5,4522.4,1.64761]
[1758276367302,0.717,4522.5,4522.4,1.64761]
[1758276367504,0.717,4522.8,4522.7,1.42359]
[1758276369198,0.995,4522.8,4522.7,1.42359]
[1758276369599,0.995,4522.8,4522.7,1.64759]
[1758276370808,0.995,4522.8,4522.7,0.62179]
[1758276375203,0.995,4522.8,4522.7,0.91009]
[1758276375506,0.995,4522.8,4522.7,1.35719]
[1758276376905,0.278,4523.0,4522.7,0.6711]
[1758276377208,0.995,4523.0,4522.9,1.42357]
[1758276377808,0.224,4524.4,4523.5,0.165]
[1758276378005,1.06653108,4524.3,4523.6,0.4471]
[1758276378206,0.8454735,4524.2,4523.8,0.84479]
[1758276378405,0.8454735,4524.2,4523.5,0.165]
[1758276378406,0.22105001,4524.2,4523.5,0.165]
[1758276378607,0.22105001,4524.1,4524.0,0.165]
[1758276378812,0.4028,4525.0,4524.0,0.165]
[1758276378813,0.4028,4525.0,4524.2,0.39765]
[1758276379012,1.06663766,4524.9,4524.2,0.39765]
[1758276379213,0.84561766,4524.8,4524.3,0.39765]
[1758276379416,1.57605035,4526.1,4524.6,1.0258]
[1758276379609,0.84310293,4526.0,4524.9,0.2883]
[1758276379809,0.194,4527.3,4525.3,0.4471]
[1758276380014,0.22094,4527.2,4525.6,0.39753]
[1758276380313,0.22094,4527.2,4525.8,0.39751]
[1758276380512,4.22093,4527.1,4525.8,0.39751]
[1758276380714,4.0,4527.1,4525.9,0.3975]
[1758276381013,0.22094,4527.0,4526.1,0.39748]
[1758276381214,1.57605035,4527.7,4526.3,0.39747]
[1758276381414,0.44492,4527.6,4526.3,0.39747]
[1758276381614,0.224,4527.6,4526.5,0.39745]
[1758276381917,0.22091,4527.5,4526.5,0.39745]
[1758276382312,0.224,4527.6,4526.3,0.39746]
[1758276382313,0.2209,4527.4,4526.3,0.39746]
[1758276382514,4.22091,4527.5,4526.3,0.39746]
[1758276382714,0.224,4527.6,4526.4,0.39746]
[1758276383007,0.22091,4527.5,4526.4,0.39746]
[1758276383206,0.22091,4527.5,4526.2,0.39747]
[1758276383413,4.22091,4527.4,4526.3,0.39747]
[1758276383609,0.22092,4527.5,4526.3,0.39747]
[1758276383815,0.22092,4527.5,4526.4,0.39746]
[1758276384121,4.22091,4527.4,4526.2,0.39747]
[1758276384420,4.0,4527.4,4526.3,0.39747]
[1758276384921,5.57605035,4527.4,4526.3,0.39747]
[1758276386121,5.57605035,4527.4,4526.4,0.39746]
[1758276386319,5.57605035,4527.4,4526.0,0.39749]
[1758276386521,1.57605035,4527.3,4525.6,0.4471]
[1758276386717,1.57605035,4527.3,4525.6,0.7354]
[1758276386909,1.57605035,4527.3,4526.2,0.39748]
[1758276387110,1.57605035,4527.3,4526.0,0.4471]
[1758276387315,1.57605035,4527.3,4526.3,0.39747]
[1758276388119,1.57605035,4527.3,4526.3,0.84456]
[1758276388316,1.57605035,4527.3,4526.0,0.165]
[1758276388523,1.57605035,4527.5,4526.6,0.39744]
[1758276388824,1.57605035,4527.3,4526.5,0.6182]
[1758276389024,1.57605035,4527.3,4526.0,0.165]
[1758276389220,1.57605035,4527.2,4525.9,0.4382]
[1758276389425,1.57605035,4527.0,4525.5,0.6032]
[1758276389825,1.57605035,4527.0,4525.9,0.3975]
[1758276390220,1.57605035,4527.0,4525.0,0.4638]
[1758276390423,1.57605035,4526.3,4525.2,0.39757]
[1758276390726,0.076,4526.2,4525.2,0.39757]
[1758276391421,0.81545724,4526.1,4525.2,0.39757]
[1758276391716,0.81545724,4526.0,4525.2,0.39757]
[1758276391919,0.81545724,4525.9,4525.2,0.39757]
[1758276392122,0.81545724,4525.8,4525.2,0.39757]
[1758276392327,0.81545724,4525.7,4525.3,0.39756]
[1758276392624,0.81545724,4525.6,4525.4,0.4382]
[1758276392824,0.57901796,4525.5,4525.4,0.4382]
[1758276393021,0.57901796,4526.1,4525.4,0.4382]
[1758276393225,0.57901796,4526.1,4525.3,0.39756]
[1758276393226,0.80568186,4526.0,4525.6,0.4382]
[1758276393427,0.80568186,4525.9,4525.6,0.4382]
[1758276393627,0.076,4526.2,4525.6,0.4382]
[1758276393628,0.80568186,4525.8,4525.6,0.4382]
[1758276393819,0.80568186,4525.7,4525.5,0.6182]
[1758276394019,0.80568186,4525.6,4525.5,0.6182]
[1758276398537,0.80568186,4525.6,4525.5,0.917]
[1758276398931,0.80568186,4525.6,4525.5,0.6182]
[1758276402832,0.80568186,4525.6,4524.6,0.4382]
[1758276402833,4.80568186,4525.6,4524.6,0.4382]
[1758276403033,0.80568186,4525.5,4524.6,0.4382]
[1758276403237,1.02968186,4525.4,4524.6,0.4382]
[1758276403434,0.80568186,4525.3,4524.6,0.4382]
[1758276403738,0.80568186,4525.2,4524.6,0.4382]
[1758276403938,0.80568186,4525.1,4524.5,0.18]
[1758276404141,0.80568186,4525.0,4524.6,0.4382]
[1758276404341,0.80568186,4524.9,4524.6,0.4382]
[1758276404541,0.80568186,4524.8,4524.6,0.4382]
[1758276404743,0.57901796,4524.7,4524.6,0.4382]
[1758276407346,0.57901796,4524.7,4524.6,0.737]
[1758276409947,0.57901796,4524.7,4524.6,1.42472]
[1758276410146,0.57901796,4524.7,4524.6,1.0271]
[1758276410448,0.57901796,4524.7,4524.6,1.42472]
[1758276411650,0.57901796,4524.7,4524.6,5.42472]
[1758276411853,0.11,4525.5,4525.4,1.0271]
[1758276412643,0.33741823,4525.5,4525.4,1.0271]
[1758276412844,0.91657889,4525.5,4525.4,1.0271]
[1758276413244,0.80657889,4525.5,4525.4,1.0271]
[1758276417359,0.8068087,4525.5,4525.4,1.42465]
[1758276424961,0.807138,4525.5,4525.4,1.42465]
[1758276428369,0.80304532,4525.5,4525.4,1.42465]
[1758276428763,0.57506798,4525.5,4525.4,1.42465]
[1758276432868,0.223,4526.0,4525.8,0.39751]
[1758276433072,0.80028776,4525.9,4525.8,0.9933]
[1758276433471,0.80028776,4525.9,4525.8,1.39081]
[1758276435858,0.80028776,4525.9,4525.8,0.7096]
[1758276436370,0.80028776,4525.9,4525.8,0.4148]
[1758276439373,0.80040439,4525.9,4525.8,0.4148]
[1758276440666,0.80040439,4525.9,4525.8,0.7096]
[1758276443273,0.80056275,4525.9,4525.8,0.7096]
[1758276443573,0.80056275,4525.9,4525.8,1.10711]
[1758276443968,0.80056275,4525.9,4525.8,1.39081]
[1758276444575,0.80056275,4525.9,4525.8,0.9933]
[1758276444879,0.80056275,4525.9,4525.8,1.39081]
[1758276445369,0.80056275,4525.9,4525.8,0.9933]